Cogmind - Beta 13 @@@ ROGUE MODE // 2024.04.04 @ 09:16:51 Player: VLAM Result: Destroyed by G-47 Trooper with Particle Gun Performance ------------- Evolutions (2) 1000 Regions Visited (4) 800 Robots Destroyed (20) 100 Value Destroyed (308) 308 Prototype IDs (0) 0 Alien Tech Used (0) 0 Bonus (0) 0 TOTAL SCORE: 2208 Bonus ------- None Cogmind --------- Core Integrity 0/550 Matter 161/300 Energy 122/125 System Corruption 0% Temperature Cool (15) Movement Flying (37) Location -8/Materials Parts ------- > --- POWER (1) -------- Light Ion Engine > --- PROPULSION (2) --- Flight Unit Flight Unit > --- UTILITY (6) ------ Machine Analyzer Visual Processing Unit Advanced Visual Processing Unit Improved Signal Interpreter Advanced Targeting Computer > --- WEAPON (2) ------- Light Assault Rifle Mace > --- INVENTORY (5) ---- Airjet Flight Unit Shock Rifle Improved Datajack Peak State ------------ > --- POWER ------------ Light Ion Engine > --- PROPULSION ------- Flight Unit Flight Unit > --- UTILITY ---------- Machine Analyzer Visual Processing Unit Advanced Visual Processing Unit Improved Signal Interpreter Advanced Targeting Computer > --- WEAPON ----------- Light Assault Rifle Mace > --- INVENTORY -------- Airjet Flight Unit Shock Rifle Improved Datajack [Rating: 21] Favorites ----------- Power Light Ion Engine Engine Light Ion Engine Propulsion Flight Unit Wheel Wheel Hover Unit Backup Propulsion I Flight Unit Flight Unit Utility Improved Signal Interpreter Device Improved Sensor Array Storage Small Battery Processor Improved Signal Interpreter Protection Medium Armor Plating Weapon Datajack Energy Gun Medium Laser Ballistic Gun Light Assault Rifle Ballistic Cannon Light Cannon Special Weapon Plasma Cutter Impact Weapon Mace Special Melee Weapon Datajack Build | -11 -10 -9 -9 -8 ------- Run | Yrd Mat Mat Min Mat Slots Evolved 4 | . . 2 . 2 Power . | . . . . . Propulsion . | . . . . . Utility 4 | . . 2 . 2 Weapon . | . . . . . Parts Attached 53 | 5 13 5 5 25 Power 3 | . . . . 3 Engine 3 | . . . . 3 Core . | . . . . . Reactor . | . . . . . Propulsion 14 | 2 4 . 3 5 Treads . | . . . . . Leg . | . . . . . Wheel 2 | 2 . . . . Hover 2 | . 2 . . . Flight 10 | . 2 . 3 5 Utility 18 | . 5 4 1 8 Device 6 | . 1 2 . 3 Storage 3 | . 2 . 1 . Processor 7 | . 1 2 . 4 Hackware . | . . . . . Protection 2 | . 1 . . 1 Artifact . | . . . . . Weapon 18 | 3 4 1 1 9 Energy Gun 5 | 1 2 . . 2 Energy Cannon . | . . . . . Ballistic Gun 5 | 2 . . . 3 Ballistic Cannon 3 | . 1 1 1 . Launcher . | . . . . . Special Weapon 1 | . . . . 1 Impact Weapon 2 | . . . . 2 Slashing Weapon . | . . . . . Piercing Weapon . | . . . . . Special Melee Weapon 2 | . 1 . . 1 Unidentified Prototypes . | . . . . . Parts Lost 17 | . 1 2 . 14 Power 1 | . . . . 1 Propulsion 5 | . . 1 . 4 Utility 8 | . 1 1 . 6 Weapon 3 | . . . . 3 Highest Loss Streak 7 | . 1 1 . 7 To Critical Strikes 1 | . . . . 1 Average Slot Usage (%) 62 | . 56 69 52 66 Engine 1 | . . . . 1 Flight 12 | . 10 12 9 13 Device 10 | . . 17 11 14 Storage 5 | . 6 6 6 4 Processor 16 | . 12 15 11 20 Protection 1 | . 2 . . 1 Energy Gun 2 | . 8 6 . . Ballistic Gun 2 | . 3 . . 3 Ballistic Cannon 1 | . 4 1 4 . Special Melee Weapon 5 | . 2 11 11 5 Naked Turns . | . . . . . Heaviest Build 13 | 3 6 8 8 13 Greatest Support 20 | 20 12 8 8 8 Greatest Overweight (x) 4 | . 1 2 1 4 Average Overweight (x) . | . . . . . Largest Inventory Capacity 5 | 5 5 5 5 5 Average Capacity 5 | 5 5 5 5 5 Most Carried 5 | 3 5 5 5 5 Average Carried 3 | . 4 3 4 3 Final Capacity 5 | 5 5 5 5 5 Final Carried 5 | 3 5 5 5 4 Class Distribution -------------------- 73% | Mutant 26% | Scout Dominant Class ---------------- Mutant | -10/Materials Mutant | -9/Materials Mutant | -9/Mines Scout | -8/Materials Resources | -11 -10 -9 -9 -8 ----------- Run | Yrd Mat Mat Min Mat Matter Collected 676 | 215 177 2 135 147 Remotely . | . . . . . Salvage Created 373 | . 146 . 74 153 Parts 31 | . 16 . 6 9 Haulers Intercepted . | . . . . . Recyclers Shooed . | . . . . . Parts Field Recycled . | . . . . . Retrieved Matter . | . . . . . Parts Self-Destructed . | . . . . . Prevented . | . . . . . Kills | -11 -10 -9 -9 -8 ------- Run | Yrd Mat Mat Min Mat Combat Hostiles Destroyed 18 | . 8 . 3 7 Melee 2 | . . . . 2 Guns 7 | . 3 . . 4 Cannons 8 | . 5 . 3 . Classes Destroyed 5 | . 3 . 1 1 Recycler 1 | . . . 1 . Watcher 1 | . 1 . . . Swarmer 15 | . 6 . 3 6 Grunt 2 | . 2 . . . Sentry 1 | . . . . 1 Best Kill Streak 4 | . 3 . 4 3 Combat Bots Only 3 | . 3 . 3 3 Max Kills in Single Turn 1 | . 1 . 1 1 Gunslinging . | . . . . . Exploded . | . . . . . Melee 1 | . . . . 1 Uniques/NPCs Destroyed . | . . . . . Combat | -11 -10 -9 -9 -8 -------- Run | Yrd Mat Mat Min Mat Hostile Shots Fired 254 | . 49 9 21 175 Missed 88 | . 13 4 7 64 Damage Taken 1750 | . 348 73 112 1217 Core 738 | . 132 11 42 553 Absorbed by Shields . | . . . . . Core Remaining (%) 77 | 100 47 . 86 . Volleys Fired 68 | . 32 4 9 23 Largest 2 | . 2 1 1 2 Hottest 70 | . 55 50 44 70 Shots Fired 85 | . 34 4 9 38 Gun 50 | . 12 2 . 36 Cannon 33 | . 22 2 9 . Launcher . | . . . . . Special 2 | . . . . 2 Kinetic 64 | . 24 2 9 29 Thermal 14 | . 10 2 . 2 Explosive . | . . . . . Electromagnetic 7 | . . . . 7 Robot Hit Streak 12 | . 7 1 4 12 Robot Miss Streak 2 | . 2 2 1 1 Penetration Max . | . . . . . Secondary Targets . | . . . . . Shots Hit Robots 76 | . 27 2 8 39 Core Hits 23 | . 10 . 4 9 Critical Kills . | . . . . . Critical Parts Destroyed 1 | . . . . 1 Critical Strikes 5 | . 3 . 1 1 Burn 2 | . 2 . . . Blast 2 | . 1 . 1 . Smash 1 | . . . . 1 Melee Attacks 16 | . 3 3 1 9 Impact 5 | . . . . 5 Slashing . | . . . . . Piercing . | . . . . . Sneak Attacks 4 | . 3 . 1 . Combat Hostiles . | . . . . . Follow-up Attacks . | . . . . . Damage Inflicted 981 | . 369 23 177 412 Guns 402 | . 123 . . 279 Cannons 446 | . 246 23 177 . Explosions . | . . . . . Melee 120 | . . . . 120 Ramming 2 | . . . . 2 Kinetic 659 | . 272 23 177 187 Thermal 108 | . 97 . . 11 Explosive . | . . . . . Electromagnetic 92 | . . . . 92 Impact 120 | . . . . 120 Slashing . | . . . . . Piercing . | . . . . . Highest Corruption . | . . . . . Average Corruption . | . . . . . Corruption Purged . | . . . . . Corruption Blocked . | . . . . . Overload Shots . | . . . . . Overflow Damage 72 | . 2 . . 70 Projectiles 2 | . 2 . . . Explosions . | . . . . . Melee 70 | . . . . 70 Knockbacks 10 | . 5 1 3 1 Impact 1 | . . . . 1 Kinetic 9 | . 5 1 3 . Secondary . | . . . . . Self-Inflicted Damage 1 | . . . . 1 Shots . | . . . . . Rammed 2 | . . . . 2 Targets Rammed 2 | . . . . 2 Kicked . | . . . . . Crushed . | . . . . . Highest Temperature 24 | . 19 . . 24 Average Temperature 9 | . 7 . . 10 Received Heat Transfer 318 | . 114 24 . 180 Siege Activations . | . . . . . Robots Corrupted . | . . . . . Combat Hostiles . | . . . . . Parts Fried 3 | . . . . 3 Impact Corruptions 3 | . . . . 3 Robots Melted . | . . . . . Combat Hostiles . | . . . . . Parts Melted 2 | . 2 . . . Heat Transferred 481 | . 444 . . 37 Parts Sabotaged . | . . . . . Parts Stolen . | . . . . . Parts Stripped . | . . . . . Power Chain Reactions . | . . . . . Alert | -11 -10 -9 -9 -8 ------- Run | Yrd Mat Mat Min Mat Peak Influence 266 | . 266 177 140 229 Initial 111 | . . 111 64 54 Average 109 | . 152 146 91 88 Maximum Alert Level 1 | . 1 . . 1 Low Security (%) 82 | 100 60 100 100 87 Level 1 17 | . 39 . . 12 Level 2 . | . . . . . Level 3 . | . . . . . Level 4 . | . . . . . Level 5 . | . . . . . High Security . | . . . . . Max Security . | . . . . . Squads Dispatched 5 | . 1 . . 4 Investigation 1 | . . . . 1 Extermination . | . . . . . Reinforcement 4 | . 1 . . 3 Assault . | . . . . . Garrison . | . . . . . Intercept . | . . . . . Searches Triggered . | . . . . . Construction Impeded . | . . . . . Haulers Reinforced . | . . . . . Active Scanning Responses . | . . . . . Cargo Convoy Interrupts . | . . . . . Stealth | -11 -10 -9 -9 -8 --------- Run | Yrd Mat Mat Min Mat Distress Signals 3 | . . 1 . 2 Communications Jammed . | . . . . . Distress Signals . | . . . . . Times Spotted 53 | . 12 8 4 29 Peak Tracking Total 11 | . 5 6 4 11 Tactical Retreats 5 | . 1 . . 4 Traps | -11 -10 -9 -9 -8 ------- Run | Yrd Mat Mat Min Mat Traps Triggered 1 | . . . . 1 Indirectly . | . . . . . Trap Hack Attempts . | . . . . . Triggered . | . . . . . Disarmed . | . . . . . Reprogrammed . | . . . . . Reused . | . . . . . Traps Extracted . | . . . . . Installed . | . . . . . Triggered . | . . . . . Machines | -11 -10 -9 -9 -8 ---------- Run | Yrd Mat Mat Min Mat Machines Disabled 1 | . 1 . . . Max in Single Turn 1 | . 1 . . . Machines Repaired . | . . . . . Machines Dismantled . | . . . . . Machines Sabotaged . | . . . . . Overloaded Fab Kills . | . . . . . Hacking | -11 -10 -9 -9 -8 --------- Run | Yrd Mat Mat Min Mat Machines Accessed 4 | . 2 1 . 1 Terminals 3 | . 1 1 . 1 Fabricators . | . . . . . Repair Stations 1 | . 1 . . . Recycling Units . | . . . . . Scanalyzers . | . . . . . Garrison Access . | . . . . . Total Hacks 9 | . 5 2 . 2 Successful 5 | . 2 2 . 1 Failed 4 | . 3 . . 1 Catastrophic . | . . . . . Database Lockouts . | . . . . . Manual . | . . . . . Terminals 7 | . 3 2 . 2 Fabricators . | . . . . . Repair Stations 2 | . 2 . . . Recycling Units . | . . . . . Scanalyzers . | . . . . . Garrison Access . | . . . . . Terminal Hacks 4 | . 1 2 . 1 Emergency Access Points 1 | . . . . 1 Locate Traps 1 | . 1 . . . Hauler Manifests 2 | . . 2 . . Fabricator Hacks . | . . . . . Repair Station Hacks 1 | . 1 . . . Refit 1 | . 1 . . . Recycling Unit Hacks . | . . . . . Scanalyzer . | . . . . . Garrison Access Hacks . | . . . . . Unauthorized Hacks . | . . . . . Terminals . | . . . . . Fabricators . | . . . . . Repair Stations . | . . . . . Recycling Units . | . . . . . Scanalyzers . | . . . . . Garrison Access . | . . . . . Data Cores Recovered . | . . . . . Used . | . . . . . Hacking Detections 3 | . 1 1 . 1 Full Trace Events . | . . . . . Feedback Events . | . . . . . Feedback Blocked . | . . . . . Robot Schematics Acquired . | . . . . . Robots Built . | . . . . . Authchips . | . . . . . Time . | . . . . . Total Robot Build Rating . | . . . . . Part Schematics Acquired . | . . . . . Parts Built . | . . . . . Authchips . | . . . . . Time . | . . . . . Total Part Build Rating . | . . . . . Parts Repaired . | . . . . . Time . | . . . . . Parts Recycled . | . . . . . Recycled Matter . | . . . . . Retrieved Matter . | . . . . . Retrieved Components . | . . . . . Parts Scanalyzed . | . . . . . Part Schematics Acquired . | . . . . . Parts Damaged . | . . . . . Bothacking | -11 -10 -9 -9 -8 ------------ Run | Yrd Mat Mat Min Mat Used RIF Installer . | . . . . . Robots Hacked 3 | . 1 . 1 1 Non-combat 2 | . 1 . 1 . Combat 1 | . . . . 1 Robot Hacks Applied 3 | . 1 . 1 1 parse_system 2 | . 1 . . 1 no_distress 1 | . . . 1 . Relay Couplers Released . | . . . . . Fabnet Peak Effective % . | . . . . . Robots Rewired . | . . . . . Allies Hacked . | . . . . . Hacks Repelled . | . . . . . Allies | -11 -10 -9 -9 -8 -------- Run | Yrd Mat Mat Min Mat Total Allies . | . . . . . Largest Group . | . . . . . Highest-Rated Group . | . . . . . Highest-Rated Ally . | . . . . . Total Orders . | . . . . . Ally Attacks . | . . . . . Total Damage . | . . . . . Kills . | . . . . . Allies Corrupted . | . . . . . Allies Melted . | . . . . . Intel | -11 -10 -9 -9 -8 ------- Run | Yrd Mat Mat Min Mat Robot Analysis Total . | . . . . . Derelict Logs Recovered 1 | . . . 1 . Drone Launches . | . . . . . Drone Recoveries . | . . . . . Exploration | -11 -10 -9 -9 -8 ------------- Run | Yrd Mat Mat Min Mat Turns Passed 1106 | 29 312 92 115 558 Spaces Moved 1330 | 28 448 148 125 581 Core 366 | 9 176 65 90 26 Treads . | . . . . . Legs . | . . . . . Wheels 19 | 19 . . . . Hover 22 | . 22 . . . Flight 923 | . 250 83 35 555 Fastest Speed 37 | 50 37 37 37 37 Average Speed 46 | 70 46 46 54 42 Slowest Speed 250 | 80 100 150 120 250 Overloaded Moves . | . . . . . Propulsion Burnouts . | . . . . . Robots Hopped . | . . . . . Cave-ins Triggered . | . . . . . Exploration Rate (%) 36 | 4 75 14 35 53 Regions Visited 4 Branch Regions 1 Pre-discovered Areas . | . . . . . Known Exits Taken 3 | . 1 1 1 . Unknown Exits Taken 1 | 1 . . . . Scrap Searched 1 | . . . 1 . Spaces Dug . | . . . . . Terrain Destroyed 2 | . . 1 1 . Melee . | . . . . . Projectile 2 | . . 1 1 . AOE . | . . . . . Terrain Rammed . | . . . . . Walls Destroyed . | . . . . . Machines Disabled . | . . . . . Actions | -11 -10 -9 -9 -8 --------- Run | Yrd Mat Mat Min Mat Total 1721 | 35 518 167 161 840 Wait 217 | . 6 2 17 192 Move 1326 | 27 447 147 124 581 Hop . | . . . . . Pick Up 9 | . 3 1 3 2 Fast Attach 33 | 5 10 1 1 16 Attach 15 | . 2 3 3 7 Detach 12 | 3 3 3 . 3 Swap 5 | . 1 1 1 2 Drop 18 | . 11 2 2 3 Fire 68 | . 32 4 9 23 Melee 16 | . 3 3 1 9 Ram 2 | . . . . 2 Kick . | . . . . . Crush . | . . . . . Escape Stasis . | . . . . . Rewire . | . . . . . Trap . | . . . . . Miscellaneous . | . . . . . Route ------- -11/Scrapyard -10/Materials -9/Materials -9/Mines -8/Materials (discovered 1 exit: Fac) History --------- Turn | Location | Event 7 | -11/Scrapyard | Discovered new exit (range 16) 30 | -11/Scrapyard | Entered Materials 145 | -10/Materials | Core integrity fell below 50% 243 | -10/Materials | Discovered new exit (range 16) 330 | -10/Materials | Build established: Mutant 342 | -10/Materials | Identified exit to Materials 342 | -10/Materials | Entered another Materials area 342 | -9/Materials | Evolved 2 slots: Utility x2 421 | -9/Materials | Discovered new exit (range 15) 434 | -9/Materials | Identified exit to Mines 434 | -9/Materials | Entered Mines 446 | -9/Mines | Received a Rocket Launcher from a helpful Derelict 446 | -9/Mines | Learned location of 1 exit from Materials 496 | -9/Mines | Discovered new exit (range 4) 515 | -9/Mines | Identified exit to Materials 549 | -9/Mines | Entered Materials 549 | -8/Materials | Evolved 2 slots: Utility x2 550 | -8/Materials | Identified exit to Factory 905 | -8/Materials | Lost 7 parts (2n4u1w) 969 | -8/Materials | Core integrity fell below 50% 1010 | -8/Materials | Lost 4 parts (1p1n1u1w) 1064 | -8/Materials | Core integrity fell below 20% 1107 | -8/Materials | Destroyed by G-47 Trooper with Particle Gun Last Messages --------------- S-10 Pest system terminally corrupted. S-10 Pest destroyed. Flight Unit destroyed. Destroyed Lgt. Ion Engine. S-10 Pest system corrupted by crushing effect. Flight Unit fried. S-10 Pest destroyed. Acquired 25 matter. Destroyed Flight Unit. S-10 Pest system corrupted by crushing effect. Flight Unit fried. S-10 Pest destroyed. Acquired Flight Unit. Acquired Lgt. Ion Engine. ALERT: Suspicious intruders detected, dispatching Cutter reinforcements to area. Acquired 18 matter. Acquired Lgt. Assault Rifle. Critical hit (Burn: +37). K-01 Serf collects debris. Map ----- +----------------------------------------------------+ | # """""#### """"" # + ##????????????? | | +### """""#### """"" # # ##????????????? | | # """""#### + # ##???#????????? | | + """""#### """"" # ####+####????????????? | | ### """""#### """"" # #### ####????????????? | | ### """""#### """"" # #### ##??????????????? | | #### """""#### # #### ##??????????????? | | #?## ############# #### ##??????????????? | | ??#########+############# #### ##??????????????? | | ??######### ##?????????## #### ###?????????????? | | ?????????## ############# #### ##??????????????? | | ########### ############# #### ####????????????? | | ########### !###* # ####+####????????????? | | ### !## """ # # ##????????????? | | ### !## """ + + ##???????#????? | | ### !## """ # # """ ##????????????? | | ### !## # u# """ ##????????????? | | ##+######## !### # # """ ##????????????? | | ##########+## # ##????????????? | | # ########## #########????????????? | | # # ????? ??????? | | # #"???????????????????? | | # #"???????????????????? | | # ################## #"????"??????????????? | | # ################## # ?? ????????????????? | | # # #??######+##@ # ??????"????????????? | | # # #??##[ # # ???????????????????? | | # # #??## # g# ### | | # %!= #??## + ###+#############+#### | | + !== #??##** #g a | | # !== * #??##*! !# | | # # #??##*! # | | # # #??#################/##### ###+???? | | # # #??############# # ? # ???? | | # ##?#######?????????????## // # ? # ?""??? | | # #??????#???????????????## // # ????""S??? | | # #??????????????????????## """ # ????""???? | | # #??????????????????????## """ # ?????????? | | # #???????????#??????????## """ # ????"""??? | | #* #??????????????????????## """ ##????"""??? | | # #??????????????#????##### ##????"""??? | | # #???????????????????#####/##########?????????? | | # %#???????????????????##! [ #####?????????? | | # #???????????????????## = ##????????????? | | # #???????????????????## %[! ##????????????? | | # #???????????????????## "T" ##????????????? | | # #???????????????????######/######????????????? | | # #???????????????????###### =[###????????????? | | # #???######???????????????#### #??????????????? | | # #?? #??????????????????# #??????????????? | +----------------------------------------------------+ Best States ------------- Heat Dissipation 31 Energy Generation 10 Energy Capacity 250 Matter Stores 265 Matter Capacity 300 Sight Range 20 Robot Scan Range 15 Terrain Scan Range 14 Terrain Scan Density 10 Armor Coverage 225 Evasion (%) 62 Targeting Accuracy 8 Item Schematics ----------------- None Robot Schematics ------------------ None Fabricated ------------ Nothing Alien Tech Used ----------------- None Achievements -------------- None Challenges ------------ None Game ------ Seed SubdwellerImprovedSink Manual? 0 Play Time 00:28:10 Cumulative 12.0 hours Start 2024.04.03 @ 14:17:09 End 2024.04.04 @ 09:16:51 Sessions 3 Manual Loads 0 Difficulty Rogue Special Mode None Game No. 18 Rogue 18 Adventurer 0 Explorer 0 Win Type - Total 0 Types 0/0/0/0/0/0/0/0/0 Lore% 2 Gallery% 18 Achievement% 15 Wizard Run 0 Options --------- Layout 1 ASCII 0 Keyboard 1 Movement Numpad Keybinds 0 Fullscreen 2 Font 24/Smallcaps Map View 50x35 Zoom Use 0% Tactical HUD 0 Map Filters NONE Filters NONE Steam 1 RUN: 522836ff-5f1b-4a04-8c21-2cd2c497569b